fUST/lending_fUST_20250111
["ID","MTS","AMOUNT","RATE_DAILY","PERIOD"]
[348531389,1736607034769,-500.0,0.00022191,3]
[348531391,1736607034779,-642.48,0.00022191,3]
[348531393,1736607034788,-2931.12,0.00022191,3]
[348531395,1736607034798,-508.52924382,0.00022191,3]
[348531397,1736607034808,-500.0,0.00022191,3]
[348531399,1736607034817,-500.0,0.00022191,3]
[348531401,1736607034827,-500.0,0.00022191,3]
[348531403,1736607034836,-500.0,0.00022191,3]
[348531405,1736607034845,-500.0,0.00022191,3]
[348531407,1736607034854,-1514.58,0.00022191,3]
[348531409,1736607034864,-838.44,0.00022191,3]
[348531410,1736607034877,-500.0,0.00022191,3]
[348531412,1736607034887,-500.0,0.00022191,3]
[348531414,1736607034896,-595.4904602,0.00022191,3]
[348531417,1736607034906,-561.91,0.00022191,3]
[348531419,1736607034916,-291.21,0.00022191,3]
[348531420,1736607034925,-878.89,0.00022191,3]
[348531423,1736607034936,-988.09,0.00022191,3]
[348531425,1736607034945,-500.0,0.00022191,3]
[348531426,1736607034955,-1485.7,0.00022191,3]
[348531428,1736607034965,-1324.04,0.00022191,3]
[348531430,1736607034975,-1079.17,0.00022191,3]
[348531433,1736607034985,-500.0,0.00022191,3]
[348531435,1736607034994,-181.88181001,0.00022191,3]
[348531437,1736607035004,-500.0,0.00022191,3]
[348531439,1736607035014,-44763.6,0.00022191,2]
[348531441,1736607035024,-905.14,0.00022191,3]
[348531443,1736607035033,-212.66374586,0.00022191,3]
[348531445,1736607035043,-500.0,0.00022191,3]
[348531447,1736607035052,-500.0,0.00022191,3]
[348531449,1736607035061,-500.0,0.00022191,3]
[348531451,1736607035070,-2194.68,0.00022191,3]
[348531453,1736607035080,-500.0,0.00022191,3]
[348531455,1736607035089,-500.0,0.00022191,3]
[348531457,1736607035099,-604.48,0.00022191,3]
[348531465,1736607035211,-779.51,0.00022191,3]
[348531466,1736607035222,-3827.1,0.00022191,3]
[348531467,1736607035231,-500.0,0.00022191,3]
[348531468,1736607035241,-500.0,0.00022191,3]
[348531469,1736607035250,-546.01,0.00022191,3]
[348531470,1736607035260,-500.0,0.00022191,3]
[348531471,1736607035269,-500.0,0.00022191,3]
[348531472,1736607035278,-500.0,0.00022191,3]
[348531473,1736607035287,-500.0,0.00022191,3]
[348531474,1736607035297,-960.59,0.00022191,3]
[348531475,1736607035306,-500.0,0.00022191,3]
[348531476,1736607035315,-940.14,0.00022191,3]
[348531477,1736607035325,-500.0,0.00022191,3]
[348531478,1736607035334,-500.0,0.00022191,3]
[348531479,1736607035343,-884.37,0.00022191,3]
[348531480,1736607035352,-801.41,0.00022191,3]
[348531481,1736607035362,-6513.4,0.00022191,3]
[348531483,1736607035371,-500.0,0.00022191,3]
[348531485,1736607035380,-500.0,0.00022191,3]
[348531487,1736607035389,-500.0,0.00022191,3]
[348531489,1736607035398,-505.41449935,0.00022191,3]
[348531491,1736607035407,-500.0,0.00022191,3]
[348531493,1736607035417,-500.0,0.00022191,3]
[348531495,1736607035426,-500.0,0.00022191,3]
[348531497,1736607035436,-500.0,0.00022191,3]
[348531499,1736607035446,-500.0,0.00022191,3]
[348531501,1736607035455,-500.0,0.00022191,3]
[348531503,1736607035465,-680.78,0.00022191,3]
[348531505,1736607035474,-1492.12,0.00022191,3]
[348531507,1736607035483,-854.95,0.00022191,3]
[348531509,1736607035493,-500.0,0.00022191,3]
[348531511,1736607035502,-814.56,0.00022191,3]
[348531514,1736607035511,-13290.71294628,0.00022191,3]
[348531537,1736607035718,-1017.74283149,0.00022191,3]
[348531539,1736607035734,-8862.56547192,0.00022191,3]
[348531542,1736607035746,-296.64875031,0.00022191,3]
[348531544,1736607035757,-335.44610131,0.00022191,3]
[348531546,1736607035767,-774.61,0.000222,2]
[348531548,1736607035776,-500.0,0.00022273,3]
[348531550,1736607035786,-500.0,0.00022273,3]
[348531552,1736607035796,-648.562078,0.00022273,3]
[348531554,1736607035806,-504.62332342,0.00022273,3]
[348531556,1736607035815,-576.91,0.00022273,3]
[348531558,1736607035825,-500.0,0.00022273,3]
[348531560,1736607035835,-614.01,0.00022273,3]
[348531562,1736607035845,-500.0,0.00022273,3]
[348531564,1736607035855,-500.0,0.00022273,3]
[348531567,1736607035869,-268.26694119,0.00022273,3]
[348531569,1736607035879,-500.0,0.00022273,3]
[348531571,1736607035888,-500.0,0.00022273,3]
[348531573,1736607035898,-500.0,0.00022273,3]
[348531575,1736607035909,-500.0,0.00022273,3]
[348531577,1736607035919,-937.2,0.00022273,3]
[348531579,1736607035928,-500.0,0.00022273,3]
[348531581,1736607035941,-475.79113095,0.00022273,3]
[348531837,1736607038385,-267.75817334,0.00021816,2]
[348531839,1736607038395,-500.0,0.00021917,3]
[348531842,1736607038405,-1388.37,0.00021917,3]
[348531844,1736607038416,-500.0,0.00022191,3]
[348531846,1736607038425,-1388.37,0.00022191,3]
[348531848,1736607038435,-24.20886905,0.00022273,3]
[348531850,1736607038444,-500.0,0.00022273,3]
[348531852,1736607038454,-500.0,0.00022273,3]
[348531854,1736607038465,-500.0,0.00022273,3]
[348531856,1736607038474,-1326.17716663,0.00022273,3]
[348531859,1736607038496,-218.97283337,0.00022273,3]
[348531861,1736607038505,-500.0,0.00022273,3]
[348531863,1736607038515,-500.0,0.00022273,3]
[348531865,1736607038523,-500.0,0.00022273,3]
[348531867,1736607038533,-503.6419197,0.00022273,3]
[348531869,1736607038542,-500.0,0.00022273,3]
[348531871,1736607038551,-500.0,0.00022273,3]
[348531873,1736607038560,-500.0,0.00022273,3]
[348531875,1736607038569,-500.0,0.00022273,3]
[348531877,1736607038579,-500.0,0.00022273,3]
[348531879,1736607038588,-500.0,0.00022273,3]
[348531881,1736607038597,-522.10064701,0.00022273,3]
[348531883,1736607038606,-500.0,0.00022273,3]
[348531885,1736607038615,-500.0,0.00022273,3]
[348531887,1736607038625,-500.0,0.00022273,3]
[348531889,1736607038635,-1200.0,0.00022286,2]
[348531891,1736607038644,-10998.73602549,0.00022365,3]
[348531894,1736607038663,-500.0,0.00022465,3]
[348531897,1736607038674,-500.0,0.00022465,14]
[348531899,1736607038683,-500.0,0.00022465,3]
[348531901,1736607038693,-500.0,0.00022465,3]
[348531903,1736607038703,-891.64,0.00022465,3]
[348531905,1736607038714,-500.0,0.00022465,3]
[348531907,1736607038724,-500.0,0.00022465,2]
[348531909,1736607038734,-500.0,0.00022465,3]
[348531911,1736607038743,-500.0,0.00022465,3]
[348531913,1736607038753,-500.0,0.00022465,3]
[348531915,1736607038763,-596.2,0.00022465,3]
[348531917,1736607038773,-709.77,0.00022465,3]
[348531919,1736607038782,-700.13,0.00022465,3]
[348531921,1736607038792,-500.0,0.00022465,3]
[348531923,1736607038802,-500.0,0.00022465,3]
[348531926,1736607038812,-500.0,0.00022465,3]
[348531927,1736607038822,-659.5,0.00022465,3]
[348531929,1736607038831,-500.0,0.00022465,3]
[348531931,1736607038841,-70.05986675,0.00022465,3]
[348531934,1736607038860,-429.94013325,0.00022465,3]
[348531936,1736607038872,-246.23399832,0.00022465,3]
[348534476,1736607484295,255.899752,0.00013973,2]
[348534477,1736607559309,427.70168725,0.00019643,2]
[348534478,1736607648595,302.9697091,0.00019545,2]
[348534481,1736608110907,362.76719724,0.00025,120]
[348534546,1736608232970,-278.874569,0.000203,2]
[348534548,1736608232980,-255.899752,0.00020447,2]
[348534551,1736608232991,-6629.6525117,0.00020459,2]
[348534553,1736608233000,-240.88,0.00020915,2]
[348534555,1736608233009,-300.0,0.00020915,2]
[348534557,1736608233020,-4048.23925923,0.00020916,2]
[348534559,1736608233030,-16005.7342963,0.00020916,2]
[348534561,1736608233040,-588.88428102,0.00021202,2]
[348534563,1736608233050,-630.0,0.00021265,2]
[348534565,1736608233060,-150.0,0.000213,2]
[348534567,1736608233071,-838.09746168,0.00021302,2]
[348534569,1736608233081,-535.0,0.00021303,2]
[348534571,1736608233091,-2081.0,0.00021303,2]
[348534573,1736608233100,-2317.0,0.00021303,2]
[348534575,1736608233110,-150.0,0.00021488,2]
[348534577,1736608233120,-588.884281,0.00021531,2]
[348534579,1736608233130,-10270.6427938,0.00021675,2]
[348534581,1736608233140,-152.0,0.00021742,2]
[348534583,1736608233149,-4111.04407092,0.00021817,2]
[348534585,1736608233159,-588.884281,0.00021859,2]
[348534587,1736608233168,-300.0,0.000219,9]
[348534589,1736608233177,-200.72938925,0.000219,2]
[348534591,1736608233187,-295.98893615,0.00021916,2]
[348534593,1736608233197,-280.68030823,0.00021916,2]
[348534596,1736608233207,-500.0,0.00021916,2]
[348534598,1736608233216,-331.57364907,0.00021916,2]
[348534599,1736608233226,-500.0,0.00021916,2]
[348534601,1736608233235,-158.9005532,0.00021916,2]
[348534604,1736608233245,-499.0,0.00021916,2]
[348534606,1736608233254,-624.05,0.00021917,3]
[348534608,1736608233264,-500.0,0.00021917,3]
[348534610,1736608233274,-500.0,0.00021917,14]
[348534612,1736608233284,-500.0,0.00021917,3]
[348534614,1736608233294,-500.0,0.00021917,3]
[348534616,1736608233302,-188.0,0.00021917,2]
[348534618,1736608233311,-500.0,0.00021917,3]
[348534620,1736608233321,-500.0,0.00021917,3]
[348534622,1736608233331,-500.0,0.00021917,3]
[348534624,1736608233341,-506.6807908,0.00021917,3]
[348534626,1736608233350,-500.0,0.00021917,3]
[348534628,1736608233360,-500.0,0.00021917,3]
[348534630,1736608233373,-500.0,0.00021917,3]
[348534632,1736608233383,-500.0,0.00021917,3]
[348534634,1736608233392,-500.0,0.00021917,3]
[348534636,1736608233402,-506.89316175,0.00021917,3]
[348534638,1736608233411,-500.0,0.00021917,3]
[348534640,1736608233422,-859.1,0.00021917,3]
[348534642,1736608233431,-500.0,0.00021917,3]
[348534644,1736608233440,-338.61948891,0.00021917,3]
[348535153,1736608238543,-161.38051109,0.00021917,3]
[348535155,1736608238553,-500.0,0.00021917,3]
[348535157,1736608238563,-500.0,0.00021917,3]
[348535159,1736608238572,-500.0,0.00021917,3]
[348535161,1736608238582,-500.0,0.00021917,3]
[348535163,1736608238591,-579.86,0.00021917,3]
[348535165,1736608238600,-500.0,0.00021917,3]
[348535166,1736608238612,-500.0,0.00021917,3]
[348535167,1736608238622,-500.0,0.00021917,3]
[348535168,1736608238631,-1357.37,0.00021917,3]
[348535169,1736608238640,-621.05,0.00021917,3]
[348535171,1736608238649,-612.61,0.00021917,3]
[348535173,1736608238659,-500.0,0.00021917,3]
[348535175,1736608238668,-498.41143554,0.00021917,3]
[348535178,1736608238677,-500.0,0.00021917,3]
[348535180,1736608238687,-500.0,0.00021917,3]
[348535182,1736608238696,-577.07,0.00021917,3]
[348535184,1736608238705,-500.0,0.00021917,3]
[348535186,1736608238714,-500.38077139,0.00021917,3]
[348535189,1736608238730,-500.0,0.00021917,3]
[348535191,1736608238743,-500.0,0.00021917,3]
[348535193,1736608238753,-500.0,0.00021917,3]
[348535194,1736608238762,-500.0,0.00021917,3]
[348535195,1736608238772,-500.0,0.00021917,3]
[348535196,1736608238781,-500.0,0.00021917,3]
[348535198,1736608238791,-500.0,0.00021917,3]
[348535200,1736608238801,-500.0,0.00021917,3]
[348535202,1736608238811,-500.0,0.00021917,3]
[348535204,1736608238820,-588.94,0.00021917,3]
[348535206,1736608238830,-500.0,0.00021917,3]
[348535208,1736608238839,-298.33244073,0.00021917,3]
[348535210,1736608238849,-500.0,0.00021917,3]
[348535212,1736608238859,-500.0,0.00021917,3]
[348535214,1736608238868,-500.0,0.00021917,2]
[348535216,1736608238877,-482.99223027,0.00021917,3]
[348535218,1736608238891,-17.00776973,0.00021917,3]
[348535220,1736608238901,-500.0,0.00021917,3]
[348535222,1736608238910,-56.13159046,0.00021917,3]
[348536918,1736608376697,230.309776,0.00013973,2]
[348536956,1736609361128,-230.309776,0.00020447,2]
[348536957,1736609361151,-91.92712775,0.00020686,2]
[348537204,1736609443934,-490.99707547,0.00020599,2]
[348537207,1736609444002,-454.7877303,0.00020599,2]
[348537237,1736609551831,217.83460187,0.000189,2]
[348537238,1736609810234,207.278798,0.00013973,2]
[348537239,1736609818257,302.63687509,0.0001938,2]
[348537240,1736609818315,302.63687509,0.0001957,2]
[348537241,1736609818372,302.63687509,0.00019,2]
[348537242,1736609818463,189.64643721,0.0001976,2]
[348537243,1736609818530,302.63687509,0.0001919,2]
[348537244,1736609853031,150.0,0.000189,2]
[348537247,1736610103438,13030.41950604,0.00019428,2]
[348537248,1736610103812,13030.41950604,0.00019529,2]
[348537249,1736610104182,13030.41950604,0.00019901,2]
[348537250,1736610154473,150.0,0.000189,2]
[348537251,1736610391149,302.66710252,0.00019801,2]
[348537253,1736610546189,-158.0728722,0.00020188,2]
[348537254,1736610546212,-300.0,0.00020343,2]
[348537255,1736610546234,-20756.8121,0.00020344,2]
[348537256,1736610546257,-368.05267566,0.00020347,2]
[348537257,1736610546280,-12408.20928594,0.00020433,2]
[348537258,1736610551112,-622.21022011,0.00020433,2]
[348537259,1736610551135,-169.13921871,0.00020447,2]
[348537321,1736610632153,-38.13957929,0.00020447,2]
[348537323,1736610632164,-368.05267562,0.00020798,2]
[348537325,1736610632173,-300.0,0.00020875,2]
[348537327,1736610632183,-13030.41950606,0.00020876,2]
[348537329,1736610632193,-353.1995497,0.00020941,2]
[348537332,1736610632203,-353.1995497,0.00020941,2]
[348537333,1736610632213,-353.1995497,0.00021041,2]
[348537336,1736610632226,-353.1995497,0.00021041,2]
[348537338,1736610632236,-353.1995497,0.00021041,2]
[348537340,1736610632245,-154.32,0.00021041,2]
[348537342,1736610632255,-353.1995497,0.000211,2]
[348537344,1736610632264,-343.4593905,0.000211,2]
[348537346,1736610632274,-153.8632207,0.00021151,2]
[348537348,1736610632284,-153.1147712,0.00021151,2]
[348537350,1736610632293,-368.05267562,0.0002125,2]
[348537352,1736610632303,-214.0307373,0.000213,2]
[348537354,1736610632312,-153.8632207,0.000213,2]
[348537356,1736610632321,-353.1995497,0.000213,2]
[348537358,1736610632331,-153.0,0.000213,2]
[348537360,1736610632340,-353.1995497,0.000213,2]
[348537362,1736610632350,-153.8632207,0.000213,2]
[348537364,1736610632359,-353.1995497,0.000213,2]
[348537365,1736610632368,-153.8632207,0.000213,2]
[348537367,1736610632378,-315.379,0.0002135,2]
[348537369,1736610632388,-153.0,0.000214,2]
[348537373,1736610632398,-214.8242705,0.000214,2]
[348537375,1736610632408,-353.1995497,0.000214,2]
[348537378,1736610632417,-153.8632207,0.000214,2]
[348537381,1736610632427,-153.8632207,0.000214,2]
[348537385,1736610632437,-353.1995497,0.000214,2]
[348537387,1736610632447,-214.8242705,0.000214,2]
[348537390,1736610632457,-192.704,0.00021452,2]
[348537395,1736610632469,-257.917,0.0002146,2]
[348537398,1736610632479,-394.0,0.0002146,2]
[348537401,1736610632490,-535.0,0.0002146,2]
[348537404,1736610632500,-2082.0,0.0002146,2]
[348537406,1736610632509,-2319.0,0.0002146,2]
[348537408,1736610632519,-153.8632207,0.000215,2]
[348537410,1736610632529,-353.1995497,0.000215,2]
[348537411,1736610632543,-429.4854858,0.000215,2]
[348537413,1736610632552,-277.2002558,0.000215,2]
[348537415,1736610632562,-153.0,0.000215,2]
[348537417,1736610632572,-152.0,0.00021519,2]
[348537419,1736610632582,-3288.83525672,0.00021693,2]
[348537421,1736610632591,-368.05267562,0.00021701,2]
[348537423,1736610632601,-500.0,0.00021773,2]
[348537425,1736610632611,-3288.83525672,0.00021793,2]
[348537427,1736610632621,-153.0,0.00021793,2]
[348537428,1736610632631,-153.0,0.00021793,2]
[348537429,1736610632640,-153.0,0.00021793,2]
[348537430,1736610632649,-153.0,0.00021793,2]
[348537431,1736610632658,-153.0,0.00021793,2]
[348537432,1736610632668,-153.0,0.00021793,2]
[348537433,1736610632677,-153.0,0.00021793,2]
[348537434,1736610632686,-153.0,0.00021793,2]
[348537435,1736610632696,-153.0,0.00021793,2]
[348537436,1736610632706,-153.0,0.00021793,2]
[348537437,1736610632716,-153.0,0.00021793,2]
[348537438,1736610632725,-153.0,0.00021793,2]
[348537439,1736610632734,-153.0,0.00021793,2]
[348537440,1736610632745,-153.0,0.00021793,2]
[348537441,1736610632755,-153.0,0.00021793,2]
[348537442,1736610632764,-153.0,0.00021793,2]
[348537443,1736610632774,-153.0,0.00021793,2]
[348537444,1736610632783,-153.0,0.00021793,2]
[348537446,1736610632792,-153.0,0.00021793,2]
[348537448,1736610632801,-153.0,0.00021793,2]
[348537450,1736610632811,-153.0,0.00021793,2]
[348537452,1736610632821,-153.0,0.00021793,2]
[348537454,1736610632830,-153.0,0.00021793,2]
[348537456,1736610632839,-153.0,0.00021793,2]
[348537458,1736610632848,-153.0,0.00021793,2]
[348537460,1736610632858,-153.0,0.00021793,2]
[348537462,1736610632867,-153.0,0.00021793,2]
[348537464,1736610632876,-153.0,0.00021793,2]
[348537466,1736610632885,-153.0,0.00021793,2]
[348537468,1736610632895,-153.0,0.00021793,2]
[348537470,1736610632904,-153.0,0.00021793,2]
[348537472,1736610632914,-153.0,0.00021793,2]
[348537474,1736610632923,-153.0,0.00021793,2]
[348537476,1736610632932,-153.0,0.00021793,2]
[348537478,1736610632941,-153.0,0.00021793,2]
[348537480,1736610632951,-153.0,0.00021793,2]
[348537482,1736610632960,-153.0,0.00021793,2]
[348537484,1736610632970,-153.0,0.00021793,2]
[348537486,1736610632979,-153.0,0.00021794,2]
[348537488,1736610632990,-153.0,0.00021794,2]
[348537490,1736610633000,-153.0,0.00021794,2]
[348537492,1736610633009,-153.0,0.00021794,2]
[348537494,1736610633018,-70.33704047,0.00021794,2]
[348537497,1736610633035,-82.66295953,0.00021794,2]
[348537499,1736610633044,-153.0,0.00021794,2]
[348537501,1736610633054,-153.0,0.00021794,2]
[348537503,1736610633063,-153.0,0.00021794,2]
[348537505,1736610633073,-153.0,0.00021794,2]
[348537507,1736610633083,-41.35704047,0.00021794,2]
[348537509,1736610633095,-111.64295953,0.00021794,2]
[348537511,1736610633105,-153.0,0.00021794,2]
[348537513,1736610633115,-153.0,0.00021794,2]
[348537515,1736610633125,-153.0,0.00021794,2]
[348537517,1736610633135,-153.0,0.00021794,2]
[348537519,1736610633144,-153.0,0.00021794,2]
[348537521,1736610633155,-153.0,0.00021794,2]
[348537523,1736610633164,-153.0,0.00021794,2]
[348537525,1736610633175,-153.0,0.00021794,2]
[348537527,1736610633185,-153.0,0.00021794,2]
[348537529,1736610633195,-153.0,0.00021794,2]
[348537531,1736610633204,-153.0,0.00021794,2]
[348537533,1736610633215,-153.0,0.00021794,2]
[348537535,1736610633225,-153.0,0.00021794,2]
[348537537,1736610633234,-153.0,0.00021794,2]
[348537539,1736610633246,-153.0,0.00021794,2]
[348537541,1736610633256,-153.0,0.00021794,2]
[348537543,1736610633266,-153.0,0.00021794,2]
[348537545,1736610633277,-153.0,0.00021794,2]
[348537547,1736610633287,-153.0,0.00021794,2]
[348537549,1736610633296,-153.0,0.00021794,2]
[348537551,1736610633306,-153.0,0.00021794,2]
[348537553,1736610633316,-153.0,0.00021794,2]
[348537555,1736610633326,-153.0,0.00021794,2]
[348537557,1736610633336,-153.0,0.00021794,2]
[348537559,1736610633345,-153.0,0.00021794,2]
[348537561,1736610633357,-153.0,0.00021794,2]
[348537563,1736610633367,-153.0,0.00021794,2]
[348537565,1736610633376,-153.0,0.00021794,2]
[348537567,1736610633386,-153.0,0.00021794,2]
[348537569,1736610633396,-153.0,0.00021794,2]
[348537571,1736610633406,-153.0,0.00021794,2]
[348537573,1736610633416,-153.0,0.00021794,2]
[348537575,1736610633426,-153.0,0.00021794,2]
[348537577,1736610633435,-153.0,0.00021794,2]
[348537579,1736610633444,-153.0,0.00021794,2]
[348537581,1736610633454,-153.0,0.00021794,2]
[348537583,1736610633464,-153.0,0.00021794,2]
[348537585,1736610633475,-153.0,0.00021794,2]
[348537587,1736610633486,-153.0,0.00021794,2]
[348537589,1736610633496,-153.0,0.00021794,2]
[348537591,1736610633507,-153.0,0.00021794,2]
[348537593,1736610633518,-153.0,0.00021794,2]
[348537595,1736610633529,-153.0,0.00021794,2]
[348537597,1736610633544,-153.0,0.00021794,2]
[348537599,1736610633554,-153.0,0.00021794,2]
[348537601,1736610633564,-153.0,0.00021794,2]
[348537603,1736610633574,-153.0,0.00021794,2]
[348537605,1736610633584,-153.0,0.00021794,2]
[348537608,1736610633594,-153.0,0.00021794,2]
[348537609,1736610633605,-153.0,0.00021794,2]
[348537611,1736610633614,-153.0,0.00021794,2]
[348537613,1736610633624,-153.0,0.00021794,2]
[348537615,1736610633634,-153.0,0.00021794,2]
[348537617,1736610633644,-153.0,0.00021794,2]
[348537620,1736610633654,-153.0,0.00021794,2]
[348537621,1736610633664,-153.0,0.00021794,2]
[348537623,1736610633673,-153.0,0.00021794,2]
[348537625,1736610633682,-153.0,0.00021794,2]
[348537627,1736610633693,-153.0,0.00021794,2]
[348537630,1736610633703,-153.0,0.00021794,2]
[348537631,1736610633712,-153.0,0.00021794,2]
[348537633,1736610633722,-153.0,0.00021794,2]
[348537635,1736610633732,-153.0,0.00021794,2]
[348537637,1736610633742,-153.0,0.00021794,2]
[348537639,1736610633752,-153.0,0.00021794,2]
[348537641,1736610633761,-153.0,0.00021794,2]
[348537643,1736610633771,-153.0,0.00021794,2]
[348537645,1736610633781,-153.0,0.00021794,2]
[348537647,1736610633790,-153.0,0.00021794,2]
[348537650,1736610633800,-153.0,0.00021794,2]
[348537652,1736610633809,-153.0,0.00021794,2]
[348537653,1736610633819,-153.0,0.00021794,2]
[348537655,1736610633828,-153.0,0.00021794,2]
[348537657,1736610633838,-153.0,0.00021794,2]
[348537660,1736610633848,-153.0,0.00021794,2]
[348537662,1736610633857,-153.0,0.00021794,2]
[348537663,1736610633867,-153.0,0.00021794,2]
[348537665,1736610633876,-153.0,0.00021794,2]
[348537668,1736610633886,-306.0,0.000218,2]
[348537670,1736610633896,-214.8242705,0.000218,2]
[348537671,1736610633905,-153.8632207,0.000218,2]
[348537673,1736610633915,-153.0,0.000218,2]
[348537675,1736610633925,-353.1995497,0.000218,2]
[348537678,1736610633935,-151.0,0.00021816,2]
[348537679,1736610633945,-3288.83525672,0.00021892,2]
[348537682,1736610633955,-9871.94779183,0.000219,2]
[348537684,1736610633965,-300.0,0.000219,9]
[348537686,1736610633975,-500.0,0.00021916,2]
[348537687,1736610633985,-175.07760479,0.00021916,2]
[348537689,1736610633998,-201.7857736,0.00021916,2]
[348537691,1736610634008,-500.0,0.00021916,2]
[348537694,1736610634018,-220.34638608,0.00021916,2]
[348537695,1736610634028,-151.0,0.00021916,2]
[348537698,1736610634038,-500.0,0.00021917,3]
[348537700,1736610634048,-542.51,0.00021917,3]
[348537702,1736610634058,-2900.41,0.00021917,3]
[348537703,1736610634069,-1494.77,0.00021917,3]
[348537705,1736610634079,-500.0,0.00021917,3]
[348537708,1736610634089,-500.0,0.00021917,3]
[348537710,1736610634099,-407.2305,0.00021917,14]
[348537711,1736610634109,-198.27654703,0.00021917,3]
[348537713,1736610634119,-764.71,0.00021917,3]
[348537716,1736610634129,-500.0,0.00021917,3]
[348537717,1736610634139,-221.49825535,0.00021917,3]
[348537719,1736610634149,-500.0,0.00021917,3]
[348537721,1736610634159,-500.0,0.00021917,3]
[348537724,1736610634169,-500.0,0.00021917,3]
[348537726,1736610634180,-500.0,0.00021917,3]
[348537728,1736610634190,-500.0,0.00021917,3]
[348537730,1736610634200,-481.89461693,0.00021917,3]
[348537732,1736610634211,-500.0,0.00021917,3]
[348537734,1736610634221,-576.55,0.00021917,3]
[348537736,1736610634231,-500.0,0.00021917,3]
[348537738,1736610634244,-500.0,0.00021917,3]
[348537740,1736610634254,-500.0,0.00021917,3]
[348537742,1736610634264,-500.0,0.00021917,3]
[348537744,1736610634274,-500.0,0.00021917,3]
[348537746,1736610634285,-500.0,0.00021917,3]
[348537748,1736610634295,-500.0,0.00021917,3]
[348537750,1736610634305,-500.0,0.00021917,3]
[348537752,1736610634315,-500.0,0.00021917,3]
[348537754,1736610634325,-500.0,0.00021917,3]
[348537756,1736610634335,-257.32944359,0.00021917,3]
[348537758,1736610634344,-560.85530698,0.00021917,3]
[348537760,1736610634354,-500.0,0.00021917,3]
[348537761,1736610634363,-473.64624902,0.00021917,3]
[348537763,1736610634373,-500.0,0.00021917,3]
[348537765,1736610634383,-500.0,0.00021917,3]
[348537768,1736610634392,-500.0,0.00021917,3]
[348537770,1736610634402,-969.14,0.00021917,3]
[348537772,1736610634411,-500.0,0.00021917,3]
[348537774,1736610634420,-500.0,0.00021917,3]
[348537775,1736610634430,-151.0,0.00021917,2]
[348537777,1736610634439,-189.67080516,0.00021917,3]
[348537780,1736610634448,-151.0,0.00021917,2]
[348537782,1736610634458,-1754.60452297,0.00021917,3]
[348538147,1736610638061,-5189.79547703,0.00021917,3]
[348538149,1736610638071,-699.34,0.00021917,3]
[348538151,1736610638080,-213.65157777,0.00021917,3]
[348538153,1736610638089,-500.0,0.00021917,2]
[348538155,1736610638099,-500.0,0.00021917,3]
[348538157,1736610638108,-712.09,0.00021917,3]
[348538159,1736610638117,-500.0,0.00021917,3]
[348538161,1736610638127,-1467.79,0.00021917,3]
[348538163,1736610638136,-1114.57,0.00021917,3]
[348538165,1736610638145,-553.02,0.00021917,3]
[348538166,1736610638155,-151.0,0.00021917,2]
[348538168,1736610638164,-151.0,0.00021917,2]
[348538170,1736610638173,-500.0,0.00021917,3]